bitfinex-derivatives/quotes_ETHF0:USTF0_20250308
["timestamp","ask_amount","ask_price","bid_price","bid_amount"]
[1741409226451,1.56839,2150.7,2150.6,0.02]
[1741409227158,0.93018,2150.5,2150.4,3.2078]
[1741409227358,0.93018,2150.5,2150.4,3.2278]
[1741409227954,1.53268,2150.5,2150.4,0.02]
[1741409228354,0.6025,2150.5,2150.4,0.95022]
[1741409228761,2.081,2151.0,2150.4,3.2278]
[1741409228950,1.9022,2150.8,2150.4,3.2278]
[1741409229152,0.93014,2150.6,2150.4,4.15799]
[1741409231255,0.93018,2150.5,2150.4,3.2278]
[1741409231457,0.93018,2150.5,2150.4,0.02]
[1741409231652,0.93025,2150.4,2150.2,1.5393]
[1741409231861,2.82955,2150.4,2150.2,1.7193]
[1741409232052,1.8993,2150.4,2150.2,0.789]
[1741409232260,2.82956,2150.4,2150.2,1.7193]
[1741409235062,2.82954,2150.4,2150.2,1.7193]
[1741409235358,0.6127,2150.4,2150.2,0.789]
[1741409235559,1.54292,2150.4,2150.2,1.71927]
[1741409235862,0.93027,2150.3,2150.2,0.789]
[1741409236062,1.54897,2150.3,2150.2,1.71931]
[1741409236661,0.6187,2150.3,2150.2,1.71931]
[1741409237157,1.54897,2150.3,2150.2,0.18]
[1741409237358,2.18397,2150.3,2150.2,0.18]
[1741409237562,2.18397,2150.3,2150.1,3.2078]
[1741409237563,0.93031,2150.2,2150.1,3.2078]
[1741409237757,0.93031,2150.2,2150.1,3.2678]
[1741409238266,0.6127,2150.4,2150.1,3.2678]
[1741409238461,2.081,2150.6,2150.1,6.19754]
[1741409238662,2.081,2150.6,2150.2,0.6656]
[1741409238863,2.081,2150.6,2150.5,0.93018]
[1741409239264,2.081,2150.6,2150.3,0.6157]
[1741409239466,3.01115,2150.6,2150.4,0.93019]
[1741409239667,3.01115,2150.6,2150.4,0.99019]
[1741409240064,2.081,2150.6,2150.5,0.93018]
[1741409240271,2.081,2150.6,2150.5,1.58588]
[1741409240978,1.8985,2150.9,2150.5,0.6557]
[1741409241167,2.82854,2150.9,2150.7,0.93007]
[1741409241571,2.82854,2150.9,2150.6,0.652]
[1741409241780,2.82854,2150.9,2150.6,1.58211]
[1741409242081,0.93006,2150.8,2150.6,1.58211]
[1741409242280,1.8985,2150.9,2150.4,3.2078]
[1741409242482,0.93013,2150.7,2150.4,4.13799]
[1741409242680,0.93013,2150.7,2150.4,4.79369]
[1741409244381,0.9301,2150.7,2150.5,0.93016]
[1741409244682,0.93014,2150.6,2150.5,0.6687]
[1741409245072,1.8985,2150.9,2150.4,0.6557]
[1741409245073,5.1063,2150.9,2150.4,0.6557]
[1741409245274,0.93018,2150.5,2150.3,0.93025]
[1741409245473,1.2492,2150.4,2150.3,1.01025]
[1741409246175,0.93017,2150.6,2150.3,0.7487]
[1741409246483,0.93017,2150.6,2150.4,0.9302]
[1741409246680,1.2492,2150.8,2150.3,0.6687]
[1741409246883,0.93015,2150.6,2150.4,0.93022]
[1741409247079,0.93015,2150.6,2150.3,0.7587]
[1741409247080,1.2492,2150.8,2150.3,0.6687]
[1741409247390,1.2492,2150.8,2150.5,0.93015]
[1741409247391,0.9301,2150.7,2150.5,0.93015]
[1741409247578,1.2492,2150.8,2150.3,0.6687]
[1741409247781,0.93011,2150.7,2150.5,0.93018]
[1741409250594,1.2492,2150.8,2150.5,3.2178]
[1741409250786,2.17927,2150.8,2150.6,2.16991]
[1741409251188,1.2492,2150.8,2150.6,1.2398]
[1741409251487,2.17926,2150.8,2150.6,2.16989]
[1741409252093,1.2492,2150.8,2150.6,1.2398]
[1741409252291,0.93009,2150.7,2150.6,1.2398]
[1741409252494,2.17927,2150.8,2150.6,2.16992]
[1741409252794,2.17927,2150.8,2150.6,2.16993]
[1741409253695,2.17927,2150.8,2150.6,1.53273]
[1741409253991,1.2492,2150.8,2150.7,0.93009]
[1741409254181,2.17925,2150.8,2150.6,2.18501]
[1741409255185,1.2492,2150.8,2150.6,1.2549]
[1741409255383,2.17926,2150.8,2150.6,2.18501]
[1741409256590,1.2492,2150.8,2150.7,0.93009]
[1741409256894,0.6125,2150.8,2150.7,0.93009]
[1741409258600,1.2413,2150.8,2150.7,0.93009]
[1741409258800,1.2413,2150.8,2150.6,1.2549]
[1741409259003,2.17136,2150.8,2150.6,2.26501]
[1741409259198,0.93009,2150.7,2150.6,1.3349]
[1741409259394,0.93009,2150.7,2150.6,0.6826]
[1741409259701,0.93009,2150.7,2150.6,1.61274]
[1741409259907,0.93009,2150.7,2150.6,0.6826]
[1741409261003,0.93009,2150.7,2150.6,1.61274]
[1741409261905,0.93009,2150.7,2150.6,0.6826]
[1741409262205,0.93009,2150.7,2150.6,0.08]
[1741409262899,0.93009,2150.7,2150.5,0.93018]
[1741409263204,0.93013,2150.7,2150.4,0.6107]
[1741409263402,2.17138,2150.8,2150.6,0.93012]
[1741409263607,0.93009,2150.7,2150.6,0.93012]
[1741409263798,0.93009,2150.7,2150.4,0.6107]
[1741409263998,0.93009,2150.7,2150.5,0.93015]
[1741409264502,0.93015,2150.6,2150.4,0.93019]
[1741409264806,0.6551,2150.5,2150.4,0.93019]
[1741409266003,0.93011,2150.7,2150.6,0.93014]
[1741409266504,2.82648,2150.8,2150.6,0.93014]
[1741409266806,1.8964,2150.8,2150.6,0.93014]
[1741409267008,1.8964,2150.8,2150.5,0.6173]
[1741409267202,0.93009,2150.7,2150.6,0.93013]
[1741409267607,0.93009,2150.7,2150.5,0.6173]
[1741409267608,0.93009,2150.7,2150.5,1.54745]
[1741409268609,1.8964,2150.8,2150.6,0.93012]
[1741409268804,0.93009,2150.7,2150.5,0.6173]
[1741409269006,0.93009,2150.7,2150.5,1.54745]
[1741409269202,0.93013,2150.7,2150.5,1.54745]
[1741409269506,2.08,2150.7,2150.2,3.2078]
[1741409269707,2.08,2150.7,2150.2,3.3678]
[1741409269910,0.93025,2150.4,2150.2,4.29809]
[1741409270102,1.8985,2150.3,2150.2,4.29809]
[1741409273110,2.82877,2150.3,2150.2,3.3678]
[1741409273411,1.8985,2150.3,2150.2,4.29811]
[1741409273609,2.82877,2150.3,2150.2,3.3678]
[1741409274205,1.8985,2150.3,2150.2,4.29811]
[1741409274403,2.82877,2150.3,2150.2,3.3678]
[1741409278117,2.82877,2150.3,2150.2,3.2078]
[1741409278708,3.9785,2150.3,2149.9,3.21477983]
[1741409278911,0.93039,2150.0,2149.9,3.35477983]
[1741409279112,0.93038,2150.1,2149.9,4.28521983]
[1741409279408,3.9785,2150.3,2149.9,3.35477983]
[1741409279610,3.9785,2150.3,2150.2,0.93031]
[1741409279817,3.9785,2150.3,2150.2,0.01]
[1741409280122,4.90877,2150.3,2150.2,0.01]
[1741409280619,3.9785,2150.3,2150.2,0.94031]
[1741409280820,3.9785,2150.3,2150.2,0.01]
[1741409281014,4.90877,2150.3,2150.2,0.01]
[1741409282517,3.9785,2150.3,2150.2,0.94031]
[1741409282919,2.08,2150.3,2150.2,0.94031]
[1741409283122,2.08,2150.3,2150.2,0.01]
[1741409283423,3.01027,2150.3,2150.2,0.01]
[1741409284120,2.08,2150.3,2150.2,0.01]
[1741409284325,2.08,2150.3,2150.2,0.94031]
[1741409284526,3.01027,2150.3,2150.2,0.01]
[1741409286921,0.93039,2150.0,2149.9,0.00697983]
[1741409287129,0.93057,2149.6,2149.5,3.2078]
[1741409287322,0.93054,2149.7,2149.5,5.6184]
[1741409287626,0.6258,2149.9,2149.5,4.6878]
[1741409287627,2.7058,2149.9,2149.5,4.6878]
[1741409287920,1.55624,2149.9,2149.6,2.23334]
[1741409288125,1.55624,2149.9,2149.6,2.0964]
[1741409288327,1.55624,2149.9,2149.7,0.93051]
[1741409288524,1.55624,2149.9,2149.7,0.03]
[1741409289233,0.6258,2149.9,2149.7,0.03]
[1741409289521,0.6393,2149.8,2149.5,3.21477983]
[1741409289727,0.93057,2149.6,2149.5,3.48477983]
[1741409290525,0.93057,2149.6,2149.5,3.21477983]
[1741409292834,0.93057,2149.6,2149.5,0.00697983]
[1741409293228,1.57847,2149.6,2149.5,0.00697983]
[1741409297930,0.6258,2149.9,2149.5,0.00697983]
[1741409298132,0.00697983,2150.0,2149.8,0.93046]
[1741409298343,0.93048,2149.9,2149.6,1.55964]
[1741409298528,0.9305,2149.8,2149.6,2.35175]
[1741409299235,0.65317983,2150.0,2149.6,1.4212]
[1741409299236,0.6202,2149.9,2149.6,1.4212]
[1741409299536,0.65317983,2150.0,2149.6,1.4212]
[1741409299738,1.58359983,2150.0,2149.6,1.4212]
[1741409299932,1.58359983,2150.0,2149.8,0.93048]
[1741409300137,1.58359983,2150.0,2149.6,1.2712]
[1741409300338,0.65317983,2150.0,2149.6,2.32174]
[1741409300738,0.93052,2149.7,2149.6,1.3912]
[1741409301541,0.93057,2149.6,2149.5,3.21477983]
[1741409301742,1.55897,2149.6,2149.5,3.23477983]
[1741409302438,3.86097983,2150.0,2149.5,3.23477983]
[1741409302639,0.93057,2149.6,2149.5,3.23477983]
[1741409303446,0.93057,2149.6,2149.5,3.21477983]
[1741409304041,1.59657,2149.6,2149.5,3.21477983]
[1741409304554,0.93057,2149.6,2149.5,3.21477983]
[1741409304747,0.6284,2149.9,2149.5,3.21477983]
[1741409304952,0.93049,2149.8,2149.6,0.93055]
[1741409305152,0.93052,2149.7,2149.6,0.03]
[1741409306247,2.7084,2149.9,2149.6,0.03]
[1741409306448,0.93049,2149.8,2149.6,0.96055]
[1741409306643,0.93737983,2150.0,2149.7,0.6464]
[1741409306853,2.08697983,2150.0,2149.8,0.93044]
[1741409307251,0.93046,2149.9,2149.7,2.22841]
[1741409307454,0.93048,2149.8,2149.7,1.3679]
[1741409309057,0.93045,2149.9,2149.7,2.29841]
[1741409309552,2.08697983,2150.0,2149.7,1.3679]
[1741409309856,0.93045,2149.9,2149.7,2.29841]
[1741409310251,0.93048,2149.8,2149.7,1.3679]
[1741409311358,0.93047,2149.9,2149.7,2.29842]
[1741409313362,2.08697983,2150.0,2149.7,1.3679]
[1741409314658,2.08697983,2150.0,2149.9,0.93044]
[1741409314854,0.00697983,2150.0,2149.9,4.13824]
[1741409315058,0.00697983,2150.0,2149.9,4.15824]
[1741409317663,0.93017,2150.6,2149.9,3.2278]
[1741409317860,3.00915,2150.6,2150.4,0.9302]
[1741409318464,3.2078,2150.7,2150.6,0.93014]
[1741409318663,3.2078,2150.7,2150.5,1.2544]
[1741409319063,3.2078,2150.7,2150.6,0.93014]
[1741409320161,1.9434,2150.8,2150.6,0.93011]
[1741409320668,2.87346,2150.8,2150.6,0.93011]
[1741409320859,2.87346,2150.8,2150.6,0.93012]
[1741409321261,2.87345,2150.8,2150.6,0.93012]
[1741409321462,2.87345,2150.8,2150.5,2.18456]
[1741409321665,0.00697983,2150.9,2150.7,0.93007]
[1741409321972,0.00697983,2150.9,2150.8,0.93005]
[1741409322265,0.00697983,2150.9,2150.7,0.93006]
[1741409322668,0.93699983,2150.9,2150.7,0.93006]
[1741409323760,0.00697983,2150.9,2150.8,0.93005]
[1741409327262,0.00697983,2150.9,2150.8,4.13785]
[1741409327465,0.00697983,2150.9,2150.8,4.14785]
[1741409335087,0.00697983,2150.9,2150.8,4.75425]
[1741409336577,0.00697983,2150.9,2150.8,1.54645]
[1741409336879,0.00697983,2150.9,2150.8,4.75425]
[1741409337972,1.9485,2151.2,2150.8,4.75425]
[1741409338173,1.2546,2151.5,2151.4,0.92979]
[1741409338374,0.6558,2151.9,2151.8,0.92962]
[1741409338572,1.2942,2151.9,2151.8,0.92962]
[1741409338781,2.078,2152.4,2151.8,0.01]
[1741409339080,1.5679,2152.1,2151.8,0.01]
[1741409339269,0.6384,2152.1,2151.9,0.00697983]
[1741409339873,1.291,2152.1,2151.9,0.93653983]
[1741409340578,1.291,2152.1,2151.9,0.00697983]
[1741409340976,2.2205,2152.1,2151.9,0.00697983]
[1741409341270,0.92953,2152.0,2151.9,0.00697983]
[1741409341770,2.2205,2152.1,2151.9,0.00697983]
[1741409342878,0.00697983,2152.3,2152.1,0.92947]
[1741409343077,0.00697983,2152.3,2152.0,3.8699]
[1741409343285,0.00697983,2152.3,2152.2,0.92944]
[1741409343483,0.00697983,2152.3,2152.0,4.5093]
[1741409343783,0.00697983,2152.3,2152.2,0.92944]
[1741409344179,0.00697983,2152.3,2152.2,0.94944]
[1741409344385,2.7397,2152.7,2152.6,0.92927]
[1741409344687,2.7397,2152.7,2152.5,0.9293]
[1741409344885,0.6627,2152.7,2152.4,4.13713]
[1741409345082,1.59195,2152.7,2152.4,3.2078]
[1741409345484,1.59195,2152.7,2152.4,4.13715]
[1741409345983,1.59194,2152.7,2152.4,4.13714]
[1741409346187,0.6627,2152.7,2152.5,0.9293]
[1741409346380,0.6627,2152.7,2152.4,3.2078]
[1741409346381,0.6627,2152.7,2152.6,0.92927]
[1741409346580,0.6627,2152.7,2152.5,1.54749]
[1741409347687,0.6627,2152.7,2152.6,0.92927]
[1741409348487,0.00697983,2152.8,2152.6,0.92924]
[1741409348675,0.00697983,2152.8,2152.7,0.92923]
[1741409350083,0.00697983,2152.8,2152.7,4.13703]
[1741409351374,0.00697983,2152.8,2152.7,3.2078]
[1741409351580,0.93615983,2152.8,2152.7,3.2078]
[1741409352087,0.9293,2152.6,2152.2,4.13723]
[1741409352281,1.9554,2152.7,2152.2,4.20723]
[1741409352483,0.92927,2152.6,2152.2,4.20723]
[1741409352679,0.92927,2152.6,2152.2,4.13723]
[1741409352884,0.92937,2152.4,2152.2,3.2078]
[1741409353187,0.6401,2152.3,2152.2,3.2078]
[1741409353489,0.6401,2152.3,2152.2,4.13724]
[1741409354091,0.92929,2152.6,2152.3,0.92938]
[1741409354586,0.9293,2152.6,2152.3,0.9294]
[1741409355290,2.90894,2152.7,2152.4,0.92934]
[1741409355495,1.3267,2152.7,2152.2,3.2078]
[1741409355791,2.25596,2152.7,2152.4,0.92936]
[1741409356391,0.92933,2152.5,2152.2,4.13723]
[1741409357686,1.3267,2152.7,2152.3,0.9294]
[1741409357883,2.25594,2152.7,2152.4,0.92933]
[1741409358085,2.25594,2152.7,2152.2,3.2078]
[1741409358086,0.92933,2152.5,2152.2,3.2078]
[1741409358387,0.92937,2152.4,2152.2,3.2778]
[1741409358789,1.3267,2152.7,2152.2,3.2778]
[1741409358988,0.92937,2152.4,2152.2,3.2778]
[1741409359386,1.3267,2152.7,2152.2,3.2778]
[1741409359591,0.92937,2152.4,2152.2,3.2778]
[1741409360093,0.9294,2152.3,2152.2,3.2778]
[1741409360294,0.92951,2152.1,2151.9,0.00697983]
[1741409360484,0.92953,2152.0,2151.9,0.00697983]
[1741409362793,3.00553,2152.0,2151.9,0.00697983]
[1741409365508,0.92975,2151.5,2151.4,3.2078]
[1741409366488,0.92983,2151.3,2151.2,6.87650991]
[1741409366796,0.92983,2151.3,2151.2,6.88348974]
[1741409368197,0.92983,2151.3,2151.2,0.00697983]
[1741409372192,2.076,2151.5,2151.2,0.00697983]
[1741409372491,0.92983,2151.3,2151.2,0.00697983]
[1741409372691,2.076,2151.5,2151.2,0.00697983]
[1741409372898,3.00577,2151.5,2151.2,0.93682983]
[1741409373201,0.92983,2151.3,2151.2,0.00697983]
[1741409373898,0.92982,2151.4,2151.2,0.00697983]
[1741409374193,2.076,2151.5,2151.2,0.00697983]
[1741409374194,3.00575,2151.5,2151.2,0.00697983]
[1741409374394,3.00575,2151.5,2151.3,0.92982]
[1741409374591,0.92979,2151.4,2151.3,0.6227]
[1741409376096,0.92983,2151.3,2151.2,0.00697983]
[1741409376499,2.076,2151.5,2151.2,0.00697983]
[1741409376697,0.92982,2151.4,2151.2,0.00697983]
[1741409376891,0.92983,2151.3,2151.2,0.00697983]
[1741409377292,2.076,2151.5,2151.2,0.00697983]
[1741409377599,3.00577,2151.5,2151.3,0.92983]
[1741409377789,1.89307983,2151.7,2151.2,0.00697983]
[1741409377988,3.00574,2151.6,2151.3,0.9298]
[1741409378194,1.89307983,2151.7,2151.4,0.6072]
[1741409378494,0.92971,2151.6,2151.4,0.6072]
[1741409378801,3.96907983,2151.7,2151.4,0.6072]
[1741409379004,0.00697983,2151.7,2151.6,0.9297]
[1741409379688,0.00697983,2151.7,2151.6,0.9397]
[1741409381093,5.907,2152.6,2151.6,0.01]
[1741409381400,0.92966,2151.7,2151.6,0.01]
[1741409381701,0.92963,2151.8,2151.6,0.9397]
[1741409382602,0.00697983,2151.9,2151.6,0.01]
[1741409382803,0.92965,2151.8,2151.6,0.01]
[1741409383210,0.00697983,2151.9,2151.6,0.01]
[1741409383410,0.92966,2151.7,2151.6,0.01]
[1741409383601,0.92963,2151.8,2151.6,0.9397]
[1741409384006,0.92963,2151.8,2151.6,0.01]
[1741409384311,0.92963,2151.8,2151.6,0.93969]
[1741409384509,0.92963,2151.8,2151.6,0.01]
[1741409384805,0.00697983,2151.9,2151.6,0.01]
[1741409385010,0.92962,2151.8,2151.6,0.93969]
[1741409385506,0.92965,2151.8,2151.6,0.01]
[1741409385905,0.92966,2151.7,2151.6,0.01]
[1741409389111,0.92964,2151.8,2151.6,0.01]
[1741409391032,2.08297983,2151.9,2151.8,0.92962]
[1741409391309,3.01254983,2151.9,2151.7,0.92964]
[1741409392013,2.08297983,2151.9,2151.5,3.2078]
[1741409392208,3.01258983,2151.9,2151.6,0.92967]
[1741409392513,3.01258983,2151.9,2151.6,0.99967]
[1741409393308,2.08297983,2151.9,2151.6,0.07]
[1741409393508,0.92966,2151.7,2151.5,4.13752]
[1741409393814,0.9297,2151.6,2151.5,3.2078]
[1741409394008,2.7743,2151.6,2151.5,3.2078]
[1741409395616,0.92983,2151.3,2151.2,3.21477983]
[1741409395819,0.92983,2151.3,2151.2,3.28477983]
[1741409396818,0.93007,2150.8,2150.6,3.2078]
[1741409397018,0.93009,2150.7,2150.6,4.0378]
[1741409397216,1.58469,2150.7,2150.6,0.83]
[1741409397924,0.6546,2150.7,2150.6,0.83]
[1741409398230,0.6546,2150.7,2150.6,4.0378]
[1741409398426,1.2992,2150.7,2150.6,4.0378]
[1741409398825,1.2992,2150.7,2150.6,4.96794]
[1741409399620,1.2992,2150.7,2150.6,4.0378]
[1741409400318,1.2992,2150.7,2150.6,4.96794]
[1741409400519,1.2992,2150.7,2150.6,4.0378]
[1741409400714,2.22929,2150.7,2150.6,4.0378]
[1741409400927,1.56568,2151.0,2150.7,0.93006]
[1741409401226,1.2557,2151.0,2150.7,0.01]
[1741409401424,2.18569,2151.0,2150.7,0.94007]
[1741409401630,1.2557,2151.0,2150.9,0.93001]
[1741409401822,1.2557,2151.0,2150.8,0.93002]
[1741409402027,3.00581,2151.4,2150.9,3.2078]
[1741409402328,0.92993,2151.1,2150.9,4.5613]
[1741409402528,0.92996,2151.0,2150.9,3.2878]
[1741409402720,0.93001,2150.9,2150.6,4.13791]
[1741409402916,2.20411,2150.9,2150.6,5.40791]
[1741409403121,0.93007,2150.8,2150.6,4.4778]
[1741409403321,0.93005,2150.8,2150.6,4.4778]
[1741409403518,1.2741,2150.9,2150.6,4.4778]
[1741409403923,1.2741,2150.9,2150.6,5.40792]
[1741409404133,2.20413,2150.9,2150.6,4.4778]
[1741409404325,1.2741,2150.9,2150.7,0.93009]
[1741409404631,1.2741,2150.9,2150.7,0.05]
[1741409404931,2.076,2151.3,2150.7,0.05]
[1741409405118,3.00585,2151.3,2151.0,0.92993]
[1741409405319,3.3377,2151.4,2151.0,0.03]
[1741409405532,1.2617,2151.4,2151.2,0.92985]
[1741409405735,1.2617,2151.4,2151.0,1.2537]
[1741409405931,1.2617,2151.4,2151.3,0.92983]
[1741409406232,2.19149,2151.4,2151.0,1.2537]
[1741409406532,2.19149,2151.4,2151.0,1.4337]
[1741409406732,0.92983,2151.3,2151.1,0.92992]
[1741409406932,1.2617,2151.4,2151.1,0.07]
[1741409407136,0.92983,2151.3,2151.1,0.07]
[1741409407437,1.2617,2151.4,2151.1,0.07]
[1741409407637,2.19152,2151.4,2151.1,0.9999]
[1741409408936,1.2617,2151.4,2151.2,0.92985]
[1741409409239,1.58367,2151.5,2151.2,4.14765]
[1741409410332,0.92981,2151.4,2151.2,4.14765]
[1741409410536,0.6539,2151.5,2151.2,4.14765]
[1741409410738,1.58368,2151.5,2151.2,4.14765]
[1741409410935,0.92979,2151.4,2151.2,4.14765]
[1741409411440,0.92979,2151.4,2151.2,3.2178]
[1741409411931,0.92983,2151.3,2151.2,3.2178]
[1741409412236,0.92983,2151.3,2151.2,3.2078]
[1741409417040,3.8617,2151.5,2150.9,0.92996]
[1741409417233,3.8617,2151.5,2150.9,0.08]
[1741409417434,0.6539,2151.5,2151.0,0.6253]
[1741409417630,0.92988,2151.2,2151.1,0.6467]
[1741409418033,0.92986,2151.3,2151.1,1.5766]
[1741409418338,0.92986,2151.3,2151.1,0.6467]
[1741409418541,0.92986,2151.3,2151.1,1.5766]
[1741409418842,0.92986,2151.3,2151.1,0.6467]
[1741409419041,0.6539,2151.5,2151.1,0.6467]
[1741409419339,0.92985,2151.3,2151.1,1.5766]
[1741409419534,0.6539,2151.5,2151.1,0.6467]
[1741409419748,0.92988,2151.2,2151.1,3.8545]
[1741409419939,0.92988,2151.2,2151.1,3.2078]
[1741409420137,0.92986,2151.3,2151.1,4.1377]
[1741409420538,0.92988,2151.2,2151.1,4.1377]
[1741409420746,2.075,2151.4,2151.1,4.1377]
[1741409420939,0.92986,2151.3,2151.1,4.1377]
[1741409421443,0.92988,2151.2,2151.1,4.1377]
[1741409421747,0.92986,2151.3,2151.1,4.1377]
[1741409421938,0.92988,2151.2,2151.1,4.1377]
[1741409422140,0.92987,2151.3,2151.1,4.1377]
[1741409422340,0.92988,2151.2,2151.1,3.2078]
[1741409422541,0.93002,2150.9,2150.8,3.2078]
[1741409422939,0.92999,2151.0,2150.8,3.2078]
[1741409423138,0.6573,2151.0,2150.8,3.2078]
[1741409423339,0.93001,2150.9,2150.8,3.2078]
[1741409424046,0.6368,2151.1,2150.8,3.2078]
[1741409424245,1.56676,2151.1,2150.9,0.6648]
[1741409424441,0.92996,2151.0,2150.9,0.6648]
[1741409424650,0.6368,2151.1,2150.8,3.2078]
[1741409424651,0.93001,2150.9,2150.8,3.2078]
[1741409424836,1.55991,2150.9,2150.8,3.2078]
[1741409426344,3.63491,2150.9,2150.8,3.2078]
[1741409429752,2.7049,2150.9,2150.5,3.2078]
[1741409429944,0.93018,2150.5,2150.4,0.00697983]
[1741409431945,0.64447983,2150.7,2150.4,0.93719983]
[1741409431946,0.93015,2150.6,2150.4,0.93719983]
[1741409433455,0.93015,2150.6,2150.4,0.00697983]
[1741409433653,0.93015,2150.6,2150.4,0.93719983]
[1741409434860,0.93016,2150.6,2150.4,0.00697983]
[1741409435253,0.93016,2150.6,2150.4,0.93719983]
[1741409436051,0.93016,2150.6,2150.4,0.00697983]
[1741409436453,0.93016,2150.6,2150.4,0.93718983]
[1741409436954,0.93016,2150.6,2150.4,0.00697983]
[1741409437255,0.93017,2150.6,2150.4,0.00697983]
[1741409437755,0.93017,2150.6,2150.4,0.93718983]
[1741409437953,0.00697983,2150.7,2150.6,0.93014]
[1741409438154,1.3069,2151.1,2150.6,0.6237]
[1741409438354,5.2828,2151.2,2150.8,3.2078]
[1741409438561,5.2828,2151.2,2151.0,0.92993]
[1741409438854,5.2828,2151.2,2150.9,0.6596]
[1741409439056,5.2828,2151.2,2151.0,1.57854]
[1741409439251,2.08197983,2151.3,2151.0,0.6586]
[1741409439452,2.08197983,2151.3,2151.2,0.92986]
[1741409439854,2.08197983,2151.3,2151.2,0.93986]
[1741409440550,0.00697983,2151.3,2151.2,0.93986]
[1741409440754,0.606,2151.8,2151.2,2.33469]
[1741409440955,2.075,2151.8,2151.7,0.92966]
[1741409441357,2.075,2151.8,2151.7,1.57826]
[1741409441654,2.075,2151.8,2151.7,0.6486]
[1741409442050,3.00462,2151.8,2151.7,0.6486]
[1741409442354,3.00462,2151.8,2151.5,0.00697983]
[1741409442355,0.92966,2151.7,2151.5,0.00697983]
[1741409442563,3.00463,2151.8,2151.5,1.01669983]
[1741409442864,2.075,2151.8,2151.5,1.01669983]
[1741409443060,2.075,2151.8,2151.5,0.08697983]
[1741409443266,3.00463,2151.8,2151.5,1.01670983]
[1741409443556,2.075,2151.8,2151.5,0.08697983]
[1741409443762,2.075,2151.8,2151.5,0.69437983]
[1741409443962,2.075,2151.8,2151.6,0.92969]
[1741409444154,3.00462,2151.8,2151.5,1.54409983]
[1741409444354,3.00462,2151.8,2151.5,1.62409983]
[1741409445154,0.92966,2151.7,2151.5,0.69437983]
[1741409445356,0.6633,2151.7,2151.5,1.62411983]
[1741409445552,2.21446,2151.7,2151.5,0.69437983]
[1741409445861,2.21446,2151.7,2151.5,0.00697983]
[1741409445862,0.9297,2151.6,2151.5,0.00697983]
[1741409446756,1.2848,2151.7,2151.5,0.00697983]
[1741409446960,1.2848,2151.7,2151.5,0.93671983]
[1741409447160,1.2848,2151.7,2151.5,0.00697983]
[1741409447362,2.21447,2151.7,2151.5,0.00697983]
[1741409447556,0.9297,2151.6,2151.5,0.00697983]
[1741409447959,1.2848,2151.7,2151.5,0.00697983]
[1741409448366,2.21449,2151.7,2151.5,0.00697983]
[1741409448560,2.21448,2151.7,2151.5,0.00697983]
[1741409448766,0.9297,2151.6,2151.5,0.00697983]
[1741409449860,3.2078,2152.0,2151.5,0.00697983]
[1741409450066,3.61729,2151.9,2151.5,0.02697983]
[1741409450265,1.54229,2151.9,2151.6,0.92969]
[1741409450466,3.61729,2151.9,2151.6,0.92969]
[1741409450667,3.61729,2151.9,2151.6,2.22619]
[1741409450874,3.61729,2151.9,2151.7,0.92965]
[1741409451181,0.92965,2151.8,2151.6,3.2078]
[1741409451384,0.6049,2151.7,2151.6,3.2078]
[1741409451775,0.6049,2151.7,2151.6,4.1375]
[1741409458581,1.54227,2151.9,2151.7,0.92965]
[1741409460084,0.92964,2151.8,2151.6,4.13749]
[1741409460294,0.92964,2151.8,2151.6,4.20749]
[1741409460481,0.6127,2151.9,2151.6,3.2778]
[1741409460677,0.6127,2151.9,2151.5,0.00697983]
[1741409460678,0.92966,2151.7,2151.5,0.00697983]
[1741409460885,0.6127,2151.9,2151.5,0.00697983]
[1741409460886,0.6497,2151.6,2151.5,0.00697983]
[1741409461088,0.6497,2151.6,2151.5,0.93672983]
[1741409461393,0.6127,2151.9,2151.5,0.09697983]
[1741409461597,1.5423,2151.9,2151.6,4.13747]
[1741409461784,1.5423,2151.9,2151.6,4.17747]
[1741409462088,1.5423,2151.9,2151.6,3.2078]
[1741409462089,0.92966,2151.7,2151.6,3.2078]
[1741409462499,0.92966,2151.7,2151.5,0.00697983]
[1741409462790,0.6555,2151.6,2151.5,0.93672983]
[1741409463285,1.5852,2151.6,2151.5,0.00697983]
[1741409466389,0.6555,2151.6,2151.5,0.93672983]
[1741409466693,0.6555,2151.6,2151.5,0.98672983]
[1741409466996,0.6555,2151.6,2151.5,0.95672983]
[1741409468287,3.00366,2151.8,2151.5,0.95672983]
[1741409468288,2.074,2151.8,2151.5,0.02697983]
[1741409468489,2.074,2151.8,2151.6,0.92968]
[1741409468688,2.074,2151.8,2151.6,0.9297]
[1741409468998,2.074,2151.8,2151.7,0.92966]
[1741409470096,2.074,2151.8,2151.6,0.92967]
[1741409470299,2.074,2151.8,2151.5,0.00697983]
[1741409470494,2.074,2151.8,2151.5,0.04697983]
[1741409470994,2.074,2151.8,2151.6,0.92967]
[1741409471197,2.074,2151.8,2151.6,0.9297]
[1741409471896,2.1917,2151.9,2151.6,0.9297]
[1741409472092,0.92964,2151.8,2151.5,0.00697983]
[1741409472296,0.92964,2151.8,2151.6,0.92969]
[1741409472497,2.1917,2151.9,2151.6,0.92969]
[1741409472798,0.92964,2151.8,2151.6,0.92969]
[1741409474795,2.1917,2151.9,2151.6,0.9297]
[1741409475103,2.1917,2151.9,2151.5,0.00697983]
[1741409475305,2.1917,2151.9,2151.6,0.9297]
[1741409476100,2.1917,2151.9,2151.5,0.00697983]
[1741409476301,0.92962,2151.8,2151.5,0.04697983]